bitfinex/quotes_ETHUSD_20240821
["timestamp","ask_amount","ask_price","bid_price","bid_amount"]
[1724199311437,0.32000468,2585.4,2584.9,5.54310141]
[1724199311747,0.32000468,2585.4,2585.0,0.78811014]
[1724199311949,0.32000468,2585.4,2584.9,5.54310141]
[1724199311950,0.32000468,2585.4,2584.9,4.916]
[1724199313539,3.9043335,2585.8,2584.9,4.916]
[1724199313839,1.94130664,2585.7,2584.9,4.916]
[1724199314655,0.31997314,2585.7,2584.9,4.916]
[1724199314874,0.31997314,2585.7,2585.1,2.4098]
[1724199315079,0.31997314,2585.7,2585.1,5.4098]
[1724199315504,0.31997314,2585.7,2585.2,2.4098]
[1724199315814,1.6213335,2585.9,2585.2,5.4098]
[1724199316022,0.32056466,2585.6,2585.3,0.84098]
[1724199316314,0.32056466,2585.5,2585.4,0.07734693]
[1724199316525,1.6213335,2586.2,2585.4,3.34261269]
[1724199316665,0.32062774,2586.1,2585.5,3.0]
[1724199317321,3.9043335,2586.3,2585.5,3.0]
[1724199317619,0.32062774,2586.2,2585.6,0.63426127]
[1724199319118,0.32062774,2586.2,2585.5,3.0]
[1724199319411,0.32062774,2586.2,2585.6,2.4001]
[1724199322013,0.32062774,2586.2,2585.7,0.07733782]
[1724199322172,4.0026335,2586.6,2585.6,2.4001]
[1724199322389,0.32095883,2586.1,2585.6,2.4001]
[1724199322588,2.3813,2586.6,2585.8,2.4243]
[1724199323085,0.32095883,2586.5,2585.8,2.4243]
[1724199327438,0.32095883,2586.5,2585.8,5.4243]
[1724199328334,0.32095883,2586.5,2585.8,3.0]
[1724199328518,4.1169335,2586.8,2585.9,2.3999]
[1724199328714,0.6860064,2586.7,2585.9,2.3999]
[1724199328999,0.32166046,2586.7,2585.9,2.3999]
[1724199329550,0.32166046,2586.7,2586.0,0.07733305]
[1724199331892,0.32166046,2586.7,2586.1,2.52972591]
[1724199332376,0.32166046,2586.6,2586.1,2.52972591]
[1724199332689,0.32166046,2586.6,2586.3,2.4524]
[1724199332826,2.3641,2587.1,2586.3,2.4524]
[1724199333272,0.32166046,2587.0,2586.3,2.4524]
[1724199337266,0.32166046,2587.0,2586.8,2.3949]
[1724199337579,2.267,2587.9,2586.9,2.4528]
[1724199337755,2.267,2587.9,2586.9,10.50669]
[1724199338076,0.3221096,2587.8,2587.0,3.0]
[1724199341459,0.3221096,2587.8,2587.1,2.3316]
[1724199341784,0.3221096,2587.8,2587.2,0.53316]
[1724199344182,0.3221096,2587.8,2587.1,2.3316]
[1724199344786,5.4174,2588.4,2587.1,2.3316]
[1724199344963,0.31362733,2587.7,2587.1,2.3316]
[1724199345292,2.4174,2588.4,2587.1,2.3316]
[1724199345491,2.4174,2588.4,2587.3,2.4926]
[1724199345802,1.7243955,2588.6,2587.5,2.3573]
[1724199345803,0.31422585,2588.3,2587.5,2.3573]
[1724199345960,0.31422585,2588.3,2587.6,2.3573]
[1724199346165,0.103062,2588.6,2587.6,2.3573]
[1724199346402,0.103062,2588.6,2587.7,0.23573]
[1724199346403,0.31454072,2588.2,2587.7,0.23573]
[1724199346558,0.103062,2588.6,2587.7,3.23573]
[1724199346757,0.31455646,2588.1,2587.7,3.23573]
[1724199346990,0.103062,2588.6,2587.7,3.23573]
[1724199347303,2.4292,2588.5,2587.7,3.23573]
[1724199347477,2.6824262,2588.5,2587.7,3.23573]
[1724199347675,2.99701414,2588.5,2587.7,3.23573]
[1724199347909,0.31458794,2588.5,2587.8,2.3573]
[1724199351218,2.4292,2588.4,2587.5,2.3573]
[1724199351724,0.31460368,2588.3,2587.5,2.3573]
[1724199353580,2.4292,2588.2,2587.2,2.3573]
[1724199354001,0.31450136,2588.1,2587.2,4.2733]
[1724199354197,1.62070953,2588.1,2587.2,4.2733]
[1724199356498,0.31450136,2588.1,2587.2,4.2733]
[1724199360564,2.3948,2588.0,2587.2,1.916]
[1724199360911,2.70914395,2588.0,2587.2,1.916]
[1724199361860,2.70914395,2588.0,2587.3,2.3762]
[1724199362054,0.2709144,2587.9,2587.2,1.916]
[1724199362353,0.31428097,2587.8,2587.2,1.916]
[1724199365542,2.3948,2588.0,2587.2,1.916]
[1724199365871,0.3142416,2587.7,2587.2,1.916]
[1724199366035,2.3948,2588.0,2587.2,2.64522]
[1724199366237,0.3142416,2587.6,2587.2,2.64522]
[1724199366438,2.3948,2588.0,2587.2,2.64522]
[1724199366878,0.3142416,2587.9,2587.2,2.64522]
[1724199368086,0.3142416,2587.9,2587.3,2.2694]
[1724199368256,0.3142416,2587.9,2587.4,0.491462]
[1724199368602,0.31450928,2587.8,2587.4,0.491462]
[1724199368779,2.2865,2588.3,2587.3,2.2694]
[1724199369096,0.31451715,2587.7,2587.3,2.2694]
[1724199369393,2.2865,2588.3,2587.3,2.2694]
[1724199369695,0.31462736,2587.6,2587.3,2.2694]
[1724199369897,2.2865,2588.3,2587.3,2.2694]
[1724199370059,2.2865,2588.3,2587.4,0.491462]
[1724199370257,0.31462736,2588.2,2587.4,0.491462]
[1724199370460,0.31462736,2588.2,2587.5,2.3738]
[1724199370799,0.31462736,2588.2,2587.5,5.3738]
[1724199374388,0.20122376,2588.2,2588.1,6.5401]
[1724199374658,0.103062,2588.6,2588.2,2.4961]
[1724199374986,0.103062,2588.6,2588.5,2.4961]
[1724199375311,0.103062,2588.6,2588.5,3.227358]
[1724199375462,0.103062,2588.6,2588.5,6.15011]
[1724199380219,0.103062,2588.6,2588.5,0.65401]
[1724199380380,0.103062,2588.6,2588.2,6.5112]
[1724199381677,0.103062,2588.6,2588.3,3.0]
[1724199381878,0.103062,2588.6,2588.2,2.4672]
[1724199384038,0.103062,2588.6,2588.2,6.5112]
[1724199384338,0.103062,2588.6,2588.3,3.0]
[1724199384507,0.103062,2588.6,2588.4,0.95112]
[1724199387524,0.103062,2588.6,2588.5,6.3988]
[1724199387733,0.103062,2588.6,2588.5,9.3988]
[1724199392302,0.103062,2588.6,2588.5,3.0]
[1724199392621,0.103062,2588.6,2588.2,3.0]
[1724199392942,0.103062,2588.6,2588.1,2.2811]
[1724199392943,0.103062,2588.6,2588.3,0.52811]
[1724199393147,0.103062,2588.6,2587.9,13.7351]
[1724199394053,0.103062,2588.6,2588.0,3.0]
[1724199396422,0.103062,2588.6,2588.5,4.044]
[1724199399074,0.103062,2588.6,2588.2,4.044]
[1724199401885,0.103062,2588.6,2588.0,3.0]
[1724199402086,0.103062,2588.6,2588.0,4.7096]
[1724199404490,2.458,2588.5,2587.9,7.41]
[1724199405083,2.7604459,2588.4,2587.9,7.41]
[1724199405400,2.7604459,2588.4,2587.5,7.41]
[1724199405541,2.7604459,2588.4,2587.6,0.7901462]
[1724199409604,2.7604459,2588.4,2587.5,7.41]
[1724199414399,2.7604459,2588.4,2587.2,14.186]
[1724199415343,2.4945,2588.3,2587.3,4.044]
[1724199415702,0.30109381,2588.2,2587.3,4.044]
[1724199415897,0.30109381,2588.2,2587.4,2.3526]
[1724199416230,0.30109381,2588.2,2587.6,4.044]
[1724199417196,0.30109381,2588.2,2587.7,3.0]
[1724199418517,0.30109381,2588.2,2587.8,2.2673]
[1724199418828,0.103062,2588.6,2587.8,2.2673]
[1724199419000,0.30125991,2588.5,2587.8,2.2673]
[1724199419203,2.3142,2588.4,2587.7,3.0]
[1724199419384,0.103062,2588.6,2587.8,2.2673]
[1724199419731,2.3142,2588.4,2587.7,3.0]
[1724199420099,2.3142,2588.4,2587.5,0.388]
[1724199420318,0.30125991,2588.3,2587.5,0.388]
[1724199420977,2.2667,2588.2,2587.4,10.41]
[1724199421157,2.2667,2588.2,2587.4,3.09073]
[1724199421336,2.2667,2588.2,2587.2,2.304]
[1724199421677,0.30125991,2588.1,2587.2,2.304]
[1724199422382,0.30125991,2588.1,2587.3,4.044]
[1724199422673,0.30125991,2588.1,2587.4,3.0]
[1724199422965,0.30125991,2588.1,2587.5,0.7044]
[1724199426369,2.2667,2588.2,2587.5,0.7044]
[1724199426755,0.30118871,2588.1,2587.5,0.7044]
[1724199428006,0.30118871,2588.1,2587.6,6.5199]
[1724199428172,0.30118871,2588.1,2587.7,3.0]
[1724199428340,2.3148,2588.5,2587.8,0.99079]
[1724199428677,0.30123616,2588.4,2587.8,0.99079]
[1724199438657,2.4402,2588.3,2587.7,3.0]
[1724199438985,2.4402,2588.1,2587.6,0.388]
[1724199439294,0.29974726,2588.0,2587.4,0.388]
[1724199439496,0.29974726,2588.0,2587.4,1.725]
[1724199440294,0.29974726,2588.0,2587.4,4.725]
[1724199445949,0.29974726,2588.0,2587.5,2.8121]
[1724199446148,0.29974726,2588.0,2587.6,4.10291]
[1724199448306,0.29974726,2588.0,2587.6,1.10291]
[1724199461908,0.29974726,2588.0,2587.5,0.388]
[1724199462613,1.92108076,2588.0,2587.5,0.388]
[1724199464514,2.4506,2587.9,2587.5,0.388]
[1724199464889,0.29952563,2587.8,2587.5,0.388]
[1724199465975,2.4506,2587.9,2587.5,0.388]
[1724199466209,2.4506,2587.9,2587.5,1.50922496]
[1724199466515,2.4506,2587.9,2587.7,1.681]
[1724199466883,0.29952563,2587.8,2587.7,1.681]
[1724199467211,0.29952563,2587.8,2587.7,2.069]
[1724199467417,0.29952563,2587.8,2587.7,4.4802]
[1724199467591,2.4955,2588.4,2587.7,9.76635229]
[1724199467930,2.4955,2588.4,2588.3,1.681]
[1724199469326,2.4955,2588.4,2588.1,1.681]
[1724199469526,2.4955,2588.4,2587.9,3.0]
[1724199469711,2.4955,2588.4,2588.0,1.681]
[1724199469712,4.1168335,2588.4,2588.0,1.681]
[1724199470025,1.6213335,2588.3,2588.0,1.681]
[1724199470438,1.6213335,2588.3,2587.8,7.41]
[1724199470910,2.2587,2588.2,2587.8,7.41]
[1724199474033,2.2587,2588.2,2587.7,0.388]
[1724199474214,2.2587,2588.2,2587.7,3.388]
[1724199474532,2.2587,2588.2,2587.7,5.1220925]
[1724199474715,2.2587,2588.2,2587.7,2.1220925]
[1724199476020,3.8800335,2588.2,2587.7,2.1220925]
[1724199476533,1.91688722,2588.1,2587.7,0.388]
[1724199476729,2.3266,2588.0,2587.7,0.388]
[1724199477131,0.29311013,2587.9,2587.7,0.388]
[1724199479929,0.29311013,2587.9,2587.7,1.5799225]
[1724199480325,2.3799,2588.1,2587.7,1.5799225]
[1724199480526,0.29311013,2588.0,2587.7,1.5799225]
[1724199480728,0.29311013,2588.0,2587.8,0.07727687]
[1724199480930,2.53963457,2588.6,2587.8,0.07727687]
[1724199480931,3.8915335,2588.5,2588.0,2.4968]
[1724199481143,2.13353914,2588.6,2588.3,4.034]
[1724199481144,1.7243955,2588.6,2588.3,4.034]
[1724199481294,0.103062,2588.6,2588.4,2.4968]
[1724199481493,0.103062,2588.6,2588.4,5.4968]
[1724199481693,0.103062,2588.6,2588.5,2.6192069]
[1724199481962,0.00707614,2588.6,2588.5,11.68232697]
[1724199482098,0.00707614,2588.6,2588.5,12.56724033]
[1724199482299,0.00707614,2588.6,2588.5,12.97395218]
[1724199482526,0.00707614,2588.6,2588.5,10.06774336]
[1724199482714,0.00707614,2588.6,2588.5,9.64307004]
[1724199483411,0.00707614,2588.6,2588.5,8.83489372]
[1724199484131,0.00707614,2588.6,2588.5,7.49033956]
[1724199484443,0.00707614,2588.6,2588.5,8.83471233]
[1724199485699,0.00048592,2588.6,2588.5,8.83471233]
[1724199485950,0.00048592,2588.6,2588.5,9.64288865]
[1724199486300,0.00048592,2588.6,2588.5,8.83471233]
[1724199486496,0.00048592,2588.6,2588.5,9.64050776]
[1724199487513,2.4594,2589.8,2588.5,8.83471233]
[1724199487715,2.3496,2590.6,2589.2,4.034]
[1724199487937,2.3496,2590.4,2589.2,4.034]
[1724199488171,2.61290434,2590.4,2589.3,3.65251]
[1724199488667,0.28344341,2590.3,2589.5,4.034]
[1724199488816,0.28344341,2590.3,2589.6,3.0772148]
[1724199489017,2.3496,2590.4,2589.6,3.0]
[1724199489263,0.28344341,2590.3,2589.6,3.0]
[1724199489468,0.28344341,2590.3,2589.7,0.7422]
[1724199489615,2.3496,2590.2,2589.6,3.0]
[1724199489816,2.3496,2590.2,2589.5,0.388]
[1724199490056,2.3496,2590.2,2589.4,3.388]
[1724199490057,0.28344341,2590.1,2589.4,3.388]
[1724199490470,0.28344341,2590.0,2589.4,0.388]
[1724199490630,2.3496,2590.2,2589.5,3.388]
[1724199490832,2.58456,2590.2,2589.5,0.388]
[1724199491159,0.28344341,2590.1,2589.5,0.388]
[1724199491531,0.28344341,2590.1,2589.3,3.65251]
[1724199492755,0.28344341,2590.1,2589.3,4.04051]
[1724199494867,2.3496,2590.2,2589.3,4.04051]
[1724199495203,2.58456,2590.2,2589.3,4.04051]
[1724199495541,2.58456,2590.2,2589.3,3.388]
[1724199495806,2.58456,2590.2,2589.3,3.0]
[1724199498197,2.58456,2590.2,2589.2,7.41]
[1724199498492,2.4828,2590.0,2589.2,7.41]
[1724199499472,2.4828,2590.0,2589.3,3.0]
[1724199499680,0.53445008,2589.9,2589.3,3.0]
[1724199500000,0.24828,2589.9,2589.3,3.0]
[1724199501799,2.2976,2589.8,2589.3,3.0]
[1724199504523,0.28617008,2589.7,2588.9,12.27]
[1724199504802,2.284,2589.7,2588.9,12.27]
[1724199505159,0.28617008,2589.6,2588.9,12.27]
[1724199505675,2.284,2589.7,2588.9,14.238]
[1724199505887,2.284,2589.7,2589.0,3.0]
[1724199506297,2.284,2589.7,2588.9,12.27]
[1724199507633,0.28532535,2589.6,2588.9,12.27]
[1724199507972,2.284,2589.7,2588.9,12.27]
[1724199509615,2.284,2589.7,2588.8,7.41]
[1724199509806,2.5124,2589.7,2588.8,8.8544]
[1724199512530,2.5124,2589.7,2589.1,1.679]
[1724199515407,2.5124,2589.7,2588.8,7.41]
[1724199515635,2.5124,2589.7,2589.0,1.679]
[1724199515829,2.71910941,2589.6,2589.0,1.679]
[1724199515991,2.72855094,2589.5,2589.0,1.679]
[1724199517729,0.28530941,2589.4,2589.0,1.679]
[1724199517955,2.72855094,2589.5,2589.0,1.679]
[1724199518086,0.28530941,2589.4,2589.0,1.679]
[1724199518287,2.72855094,2589.5,2589.0,1.679]
[1724199518589,0.28530941,2589.4,2589.0,1.679]
[1724199519028,2.4338,2589.5,2589.0,1.679]
[1724199519434,0.28530941,2589.4,2589.0,1.679]
[1724199519807,2.4338,2589.5,2589.0,1.679]
[1724199520211,0.28530941,2589.4,2589.2,1.679]
[1724199520602,2.4338,2589.5,2589.2,1.679]
[1724199521176,0.28522972,2589.4,2589.2,1.679]
[1724199521604,2.4338,2589.5,2589.2,1.679]
[1724199521805,0.28522972,2589.3,2589.2,1.679]
[1724199522001,2.4338,2589.5,2589.2,1.93779]
[1724199522755,0.28522972,2589.4,2589.2,1.93779]
[1724199526430,2.2705,2589.8,2589.2,1.93779]
[1724199526918,0.28522972,2589.7,2589.2,1.93779]
[1724199528316,0.28522972,2589.7,2589.2,1.679]
[1724199532221,0.28522972,2589.7,2589.1,3.0]
[1724199532423,2.4303,2589.6,2588.9,3.0]
[1724199532666,2.4303,2589.6,2589.0,1.679]
[1724199532876,0.28536522,2589.5,2588.9,3.0]
[1724199533221,2.4889,2589.4,2588.9,3.0]
[1724199533720,0.28536522,2589.3,2588.9,3.0]
[1724199536770,2.3716,2589.2,2588.9,3.0]
[1724199536923,0.28536522,2589.3,2588.4,7.41]
[1724199536924,2.3716,2589.0,2588.4,7.41]
[1724199537136,2.3716,2588.8,2588.1,7.41]
[1724199537774,0.28536522,2588.7,2588.1,7.41]
[1724199537994,2.2644,2588.6,2588.1,7.41]
[1724199538348,0.28536522,2588.5,2588.1,7.41]
[1724199538544,2.3289,2588.4,2588.1,7.41]
[1724199538762,2.3289,2588.4,2587.9,1.679]
[1724199538966,1.679,2588.7,2588.1,1.679]
[1724199538967,2.3289,2588.7,2588.1,1.679]
[1724199539182,0.28536522,2588.6,2588.1,1.679]
[1724199541862,0.28536522,2588.6,2588.5,1.679]
[1724199542385,4.39539994,2589.3,2588.5,2.08964]
[1724199542688,4.39539994,2589.3,2588.9,1.679]
[1724199542689,0.283938,2589.2,2588.9,1.679]
[1724199542905,0.283938,2589.2,2588.7,1.679]
[1724199543375,0.283938,2589.2,2588.5,2.08964]
[1724199544093,0.283938,2589.2,2588.7,1.679]
[1724199544443,0.283938,2589.2,2588.6,0.208964]
[1724199544659,0.283938,2589.2,2588.5,0.41064]
[1724199547802,2.4611,2589.1,2588.4,3.0]
[1724199548102,0.2841613,2589.0,2588.1,2.3993]
[1724199548302,0.2841613,2589.0,2588.2,7.41]
[1724199548475,2.4611,2589.1,2588.3,3.0]
[1724199549295,2.4611,2589.3,2588.4,2.3993]
[1724199549496,2.4611,2589.3,2588.5,0.53993]
[1724199549665,0.2841613,2589.2,2588.5,0.53993]
[1724199550520,0.2841613,2589.2,2588.6,0.0772542]
[1724199550678,0.2841613,2589.2,2588.7,2.3993]
[1724199550881,0.2841613,2589.2,2588.8,4.031]
[1724199551103,2.43012509,2590.0,2588.9,0.64303]
[1724199551104,2.4611,2589.9,2588.9,0.64303]
[1724199551418,2.4611,2589.9,2588.9,8.05303]
[1724199551722,0.28429686,2589.8,2588.9,8.05303]
[1724199554181,0.28429686,2589.8,2589.0,3.0]
[1724199556148,0.28429686,2589.8,2589.1,0.07723561]
[1724199556311,0.28429686,2589.8,2589.2,2.2644]
[1724199558549,0.28429686,2589.8,2589.1,1.11302656]
[1724199564593,0.28429686,2589.8,2589.0,3.0]
[1724199564763,2.341,2589.7,2589.0,3.0]
[1724199565094,0.28557242,2589.6,2589.0,3.0]
[1724199565590,2.341,2589.5,2589.0,3.0]
[1724199565892,2.341,2589.5,2588.9,7.41]
[1724199565893,0.28545288,2589.4,2588.9,7.41]
[1724199566074,0.28545288,2589.4,2588.5,6.85343]
[1724199566075,0.28545288,2589.4,2588.7,3.0]
[1724199569883,2.4862,2589.3,2588.7,3.0]
[1724199570571,0.28526955,2589.2,2588.7,3.0]
[1724199571724,2.4862,2589.3,2588.7,3.0]
[1724199571888,0.28526158,2589.1,2588.7,3.0]
[1724199572223,2.4862,2589.3,2588.7,3.0]
[1724199572426,0.28526158,2589.2,2588.7,3.0]
[1724199573176,0.28526158,2589.2,2588.6,7.41]
[1724199573802,2.4614,2589.1,2588.6,7.41]
[1724199574184,0.28526158,2589.0,2588.6,7.41]
[1724199575419,2.4614,2588.9,2588.6,7.41]
[1724199575575,0.28503037,2588.8,2588.6,7.41]
[1724199575936,2.4614,2588.9,2588.6,7.41]
[1724199576212,0.28503037,2588.8,2588.6,7.41]
[1724199576417,2.4614,2588.9,2588.6,7.41]
[1724199576616,0.28503037,2588.8,2588.2,19.68]
[1724199576918,2.4276,2588.7,2587.8,7.41]
[1724199578109,2.4276,2588.7,2587.9,3.0]
[1724199578277,2.4276,2588.7,2587.9,4.041]
[1724199579025,0.28427294,2588.6,2587.9,6.3278]
[1724199579231,2.4276,2588.7,2587.9,6.3278]
[1724199579512,0.28427294,2588.6,2587.9,6.3278]
[1724199579674,0.28427294,2588.6,2588.0,1.37378]
[1724199579876,2.4276,2588.7,2588.0,1.37378]
[1724199580375,0.28427294,2588.6,2588.0,1.37378]
[1724199580710,2.4276,2588.7,2588.0,1.37378]
[1724199582413,0.28432876,2588.6,2587.9,4.041]
[1724199582613,2.02493782,2589.1,2587.9,4.041]
[1724199582818,2.57162876,2589.0,2587.9,3.0]
[1724199582991,2.2873,2588.9,2587.9,3.0]
[1724199583323,2.2873,2588.7,2587.9,3.0]
[1724199583696,2.57154901,2588.6,2587.9,3.0]
[1724199583893,2.82870391,2588.6,2587.9,3.0]
[1724199584080,2.5444549,2588.6,2587.9,3.0]
[1724199584279,0.28424901,2588.5,2587.9,3.0]
[1724199587872,0.28424901,2588.5,2587.9,5.2506]
[1724199588234,2.2873,2588.6,2587.9,5.2506]
[1724199588577,2.2873,2588.6,2588.0,1.26606]
[1724199589356,2.4906,2589.0,2588.0,5.29706]
[1724199589657,0.28374655,2588.9,2588.1,5.4394]
[1724199589856,0.28374655,2588.9,2588.2,1.073646]
[1724199590229,0.28374655,2588.9,2588.3,6.4704]
[1724199590430,2.4906,2589.3,2588.3,6.4704]
[1724199590750,2.4906,2589.3,2588.5,2.4394]
[1724199590972,2.4906,2589.3,2588.6,0.54394]
[1724199591141,0.28393797,2589.2,2588.6,3.54394]
[1724199595176,2.4906,2589.3,2588.6,3.54394]
[1724199595382,0.28425694,2589.1,2588.6,3.54394]
[1724199595564,2.4906,2589.3,2588.7,0.598334]
[1724199595881,2.4906,2589.3,2588.6,3.0]
[1724199596035,0.28420113,2589.2,2588.6,3.0]
[1724199596239,2.4906,2589.3,2588.6,3.0]
[1724199596580,0.28420113,2589.2,2588.6,3.0]
[1724199596944,2.4906,2589.3,2588.6,3.0]
[1724199597293,0.28420113,2589.2,2588.6,3.0]
[1724199597777,2.73966,2589.3,2588.6,3.0]
[1724199597938,0.28424099,2589.1,2588.6,3.0]
[1724199598143,2.73966,2589.3,2588.6,3.0]
[1724199598545,0.28420113,2589.2,2588.6,3.0]
[1724199599382,0.58658724,2589.2,2588.6,3.0]
[1724199602542,2.449,2589.1,2588.6,3.0]
[1724199603032,0.28463975,2589.0,2588.6,3.0]
[1724199603431,0.28463975,2589.0,2588.5,7.41]
[1724199603636,2.449,2588.9,2588.5,7.41]
[1724199603931,0.55788411,2588.8,2588.5,7.41]
[1724199604813,0.28452014,2588.8,2588.5,7.41]
[1724199607707,0.28452014,2588.8,2588.1,3.0]
[1724199608042,0.28452014,2588.8,2588.4,2.4396]
[1724199608201,2.02435128,2589.5,2588.6,2.4396]
[1724199608403,0.28427291,2589.4,2588.7,0.24396]
[1724199608670,9.29435128,2589.6,2588.7,3.24396]
[1724199608983,0.28427291,2589.3,2588.7,3.24396]
[1724199609136,9.29435128,2589.6,2588.7,3.24396]
[1724199609337,0.28427291,2589.2,2588.7,3.0]
[1724199609538,3.19012641,2589.5,2588.6,2.4396]
[1724199609779,0.28427291,2589.1,2588.6,2.4396]
[1724199610144,2.02435128,2589.5,2588.6,2.4396]
[1724199610344,0.28427291,2589.0,2588.6,2.98356]
[1724199610657,0.28427291,2588.9,2588.7,3.0]
[1724199610870,2.02435128,2589.5,2588.7,3.0]
[1724199611068,0.28427291,2588.8,2588.6,2.4396]
[1724199611240,2.02435128,2589.5,2588.6,2.98356]
[1724199611443,0.28427291,2589.4,2588.7,3.0]
[1724199612182,0.28427291,2589.4,2588.8,0.07724776]
[1724199612546,0.28427291,2589.4,2588.7,3.0]
[1724199612758,0.28427291,2589.4,2588.8,0.598356]
[1724199613062,0.28427291,2589.4,2588.7,3.0]
[1724199613263,0.28427291,2589.4,2588.6,2.4396]
[1724199613448,0.28427291,2589.4,2588.7,0.07724783]
[1724199613656,0.28427291,2589.4,2588.7,3.07724783]
[1724199613852,0.28427291,2589.4,2588.7,3.0]
[1724199614064,0.28427291,2589.4,2588.8,0.54396]
[1724199614381,2.02435128,2589.6,2588.8,0.54396]
[1724199614589,0.28435264,2589.3,2588.9,2.3426]
[1724199614771,4.38775128,2589.7,2588.9,5.3426]
[1724199615109,0.28435264,2589.6,2589.0,0.66589503]
[1724199615401,0.28435264,2589.6,2589.0,3.588656]
[1724199615736,2.02435128,2589.7,2589.0,3.588656]
[1724199615975,0.28435264,2589.5,2589.0,3.588656]
[1724199616207,2.02435128,2589.6,2589.0,3.588656]
[1724199616350,2.02435128,2589.6,2589.0,3.0]
[1724199616351,0.28435264,2589.4,2589.0,3.0]
[1724199616548,2.02435128,2589.7,2588.9,5.3426]
[1724199616753,0.28435264,2589.3,2588.9,5.3426]
[1724199617150,2.02608547,2589.8,2589.0,0.588656]
[1724199617604,0.28435264,2589.7,2589.0,3.588656]
[1724199618095,2.02608547,2589.8,2589.0,3.588656]
[1724199618298,2.02608547,2589.9,2589.0,3.588656]
[1724199618597,0.28435264,2589.7,2589.0,3.588656]
[1724199618901,0.28435264,2589.6,2589.0,3.0]
[1724199619196,0.28435264,2589.6,2588.9,5.3426]
[1724199619197,2.2739,2589.5,2588.9,5.3426]
[1724199619556,0.28435264,2589.4,2588.9,5.3426]
[1724199619792,0.28435264,2589.4,2588.9,6.672256]
[1724199621698,2.02479015,2589.9,2589.0,2.3467]
[1724199621859,2.02479015,2589.9,2589.0,5.3467]
[1724199622054,0.28435264,2589.8,2589.0,5.3467]
[1724199622250,0.28435264,2589.8,2589.0,6.8097316]
[1724199622899,4.49009015,2590.0,2589.0,6.8097316]
[1724199623063,4.49009015,2590.0,2589.0,5.3467]
[1724199623064,0.28435264,2589.7,2589.0,5.3467]
[1724199623266,4.49009015,2590.0,2589.0,2.3467]
[1724199623464,0.28466354,2589.9,2589.0,2.3467]
[1724199623665,2.30945369,2589.9,2589.0,2.3467]
[1724199623993,0.47747537,2589.8,2589.0,2.3467]
[1724199624411,0.28541304,2589.7,2589.0,2.3467]
[1724199624910,0.28541304,2589.7,2589.0,2.42393992]
[1724199625482,0.28541304,2589.7,2589.0,2.3467]
[1724199627280,0.28541304,2589.7,2589.1,0.07723989]
[1724199627475,0.28541304,2589.7,2589.1,0.61963388]
[1724199627680,4.48951414,2590.0,2589.1,3.61963388]
[1724199627880,0.2853971,2589.6,2589.1,3.61963388]
[1724199628081,4.48951414,2590.0,2589.1,3.61963388]
[1724199628287,0.28540507,2589.5,2589.1,3.61963388]
[1724199628498,4.48951414,2590.0,2589.2,0.59663339]
[1724199628701,0.28540507,2589.4,2589.1,3.07723989]
[1724199628899,4.48951414,2590.0,2589.1,0.07723989]
[1724199629174,0.28540507,2589.3,2589.1,0.07723989]
[1724199629515,0.28540507,2589.2,2589.1,0.61963388]
[1724199629717,0.28540507,2589.2,2589.1,3.54239399]
[1724199629944,4.48951414,2590.0,2589.1,3.54239399]
[1724199630246,4.48951414,2590.0,2589.1,3.0]
[1724199630380,0.28540507,2589.9,2589.0,2.3467]
[1724199633614,2.30961921,2589.9,2589.0,2.3467]
[1724199633777,2.37,2589.8,2588.8,7.41]
[1724199633978,2.02421414,2589.6,2588.8,7.41]
[1724199634283,0.33332341,2589.5,2588.8,7.41]
[1724199634521,0.33332341,2589.5,2588.6,2.2858]
[1724199635041,2.35753755,2589.5,2588.6,2.2858]
[1724199635190,0.23575376,2589.4,2588.6,6.25538]
[1724199635687,0.33319587,2589.3,2588.6,6.25538]
[1724199636041,2.65209587,2589.3,2588.6,3.0]
[1724199636333,2.02576688,2589.1,2588.2,9.7971]
[1724199636545,2.3189,2589.0,2588.2,7.41]
[1724199636685,4.67778303,2589.0,2588.2,7.41]
[1724199637049,2.65201615,2589.0,2588.2,7.41]
[1724199637215,4.67778303,2589.0,2588.2,7.41]
[1724199637404,2.3456,2588.9,2588.2,7.41]
[1724199637607,2.3456,2588.7,2588.2,7.41]
[1724199637810,2.3456,2588.7,2587.7,7.41]
[1724199638123,0.33282112,2588.6,2587.7,7.41]
[1724199638440,2.3456,2588.7,2587.7,7.41]
[1724199638589,0.3326616,2588.6,2587.7,7.41]
[1724199638796,2.3456,2588.7,2587.8,0.741]
[1724199638994,0.3326616,2588.6,2587.8,3.741]
[1724199639228,2.3456,2588.7,2587.8,3.741]
[1724199639429,0.3326616,2588.6,2587.8,0.741]
[1724199639697,0.76979829,2588.6,2587.8,0.741]
[1724199640639,0.76979829,2588.6,2587.8,3.741]
[1724199641154,2.4173,2588.5,2587.5,2.2779]
[1724199641443,0.76979829,2588.6,2587.4,7.41]
[1724199641444,0.3324542,2588.4,2587.4,7.41]
[1724199641654,2.4173,2588.3,2587.4,7.41]
[1724199642092,0.3324542,2588.2,2587.4,7.41]
[1724199642557,2.4173,2588.3,2587.5,3.0]
[1724199642963,0.3324542,2588.2,2587.5,3.0]
[1724199643139,0.3324542,2588.2,2587.5,4.041]
[1724199643457,2.4173,2588.3,2587.5,4.041]
[1724199643824,0.3324542,2588.2,2587.5,4.041]
[1724199644163,2.4173,2588.3,2587.5,4.041]
[1724199644512,0.3324542,2588.2,2587.5,4.041]
[1724199644712,0.3324542,2588.2,2587.6,1.1451]
[1724199644913,2.4173,2588.3,2587.6,1.1451]
[1724199645325,0.3324542,2588.2,2587.6,1.1451]